fUST/lending_fUST_20240302
["ID","MTS","AMOUNT","RATE_DAILY","PERIOD"]
[316192135,1709392240035,-160.0,0.00023999,2]
[316192137,1709392240044,-160.0,0.00023999,2]
[316192139,1709392240054,-160.0,0.00023999,2]
[316192141,1709392240063,-160.0,0.00023999,2]
[316192143,1709392240072,-172.1129373,0.00023999,2]
[316192145,1709392240081,-160.0,0.00023999,2]
[316192147,1709392240091,-160.04531929,0.00023999,2]
[316192149,1709392240100,-204.4532614,0.00023999,2]
[316192152,1709392240109,-500.0,0.00023999,2]
[316192153,1709392240119,-500.0,0.00023999,2]
[316192155,1709392240128,-500.0,0.00023999,2]
[316192157,1709392240137,-500.0,0.00023999,2]
[316192159,1709392240146,-493.0,0.00023999,2]
[316192161,1709392240155,-662.97,0.00023999,2]
[316192163,1709392240165,-662.97,0.00023999,2]
[316192165,1709392240173,-662.97,0.00023999,2]
[316192167,1709392240182,-662.97,0.00023999,2]
[316192169,1709392240192,-662.97,0.00023999,2]
[316192171,1709392240201,-662.97,0.00023999,2]
[316192173,1709392240210,-662.97,0.00023999,2]
[316192176,1709392240220,-662.97,0.00023999,2]
[316192178,1709392240229,-662.97,0.00023999,2]
[316192180,1709392240238,-662.97,0.00023999,2]
[316192182,1709392240247,-662.97,0.00023999,2]
[316192184,1709392240257,-662.97,0.00023999,2]
[316192186,1709392240266,-662.97,0.00023999,2]
[316192188,1709392240275,-662.97,0.00023999,2]
[316192190,1709392240284,-662.97,0.00023999,2]
[316192191,1709392240293,-662.97,0.00023999,2]
[316192194,1709392240305,-662.97,0.00023999,2]
[316192196,1709392240315,-662.97,0.00023999,2]
[316192197,1709392240324,-662.97,0.00023999,2]
[316192199,1709392240333,-662.97,0.00023999,2]
[316192201,1709392240343,-662.97,0.00023999,2]
[316192203,1709392240352,-662.97,0.00023999,2]
[316192206,1709392240362,-662.97,0.00023999,2]
[316192207,1709392240371,-663.20078689,0.00023999,2]
[316192209,1709392240382,-500.0,0.00023999,2]
[316192212,1709392240391,-500.0,0.00023999,2]
[316192214,1709392240401,-500.0,0.00023999,2]
[316192216,1709392240409,-500.0,0.00023999,2]
[316192218,1709392240418,-500.0,0.00023999,2]
[316192220,1709392240428,-500.0,0.00023999,2]
[316192221,1709392240437,-500.0,0.00023999,2]
[316192223,1709392240446,-500.0,0.00023999,2]
[316192225,1709392240456,-517.62,0.00023999,2]
[316192227,1709392240465,-500.0,0.00023999,2]
[316192229,1709392240475,-500.0,0.00023999,2]
[316192231,1709392240484,-500.0,0.00023999,2]
[316192233,1709392240494,-500.0,0.00023999,2]
[316192235,1709392240504,-422.72,0.00023999,2]
[316192237,1709392240513,-500.0,0.00023999,2]
[316192239,1709392240523,-500.0,0.00023999,2]
[316192241,1709392240533,-500.0,0.00023999,2]
[316192244,1709392240543,-500.0,0.00023999,2]
[316192245,1709392240553,-500.0,0.00023999,2]
[316192248,1709392240563,-500.0,0.00023999,2]
[316192250,1709392240574,-500.0,0.00023999,2]
[316192251,1709392240583,-500.0,0.00023999,2]
[316192254,1709392240593,-407.69,0.00023999,2]
[316192255,1709392240602,-500.0,0.00023999,2]
[316192257,1709392240612,-500.0,0.00023999,2]
[316192269,1709392240714,-500.0,0.00023999,2]
[316192272,1709392240727,-500.0,0.00023999,2]
[316192274,1709392240736,-500.0,0.00023999,2]
[316192275,1709392240745,-500.0,0.00023999,2]
[316192277,1709392240755,-500.0,0.00023999,2]
[316192279,1709392240764,-500.0,0.00023999,2]
[316192281,1709392240774,-500.0,0.00023999,2]
[316192283,1709392240783,-500.0,0.00023999,2]
[316192285,1709392240793,-500.0,0.00023999,2]
[316192287,1709392240802,-500.0,0.00023999,2]
[316192289,1709392240811,-500.0,0.00023999,2]
[316192291,1709392240820,-500.0,0.00023999,2]
[316192293,1709392240829,-500.0,0.00023999,2]
[316192295,1709392240838,-500.0,0.00023999,2]
[316192297,1709392240847,-500.0,0.00023999,2]
[316192299,1709392240856,-500.0,0.00023999,2]
[316192301,1709392240866,-500.0,0.00023999,2]
[316192303,1709392240874,-500.0,0.00023999,2]
[316192305,1709392240883,-500.0,0.00023999,2]
[316192307,1709392240892,-500.0,0.00023999,2]
[316192309,1709392240901,-500.0,0.00023999,2]
[316192311,1709392240911,-500.0,0.00023999,2]
[316192313,1709392240920,-500.0,0.00023999,2]
[316192315,1709392240929,-154.21776673,0.00023999,2]
[316192317,1709392240939,-500.0,0.00023999,2]
[316192319,1709392240948,-500.0,0.00023999,2]
[316192321,1709392240958,-500.0,0.00023999,2]
[316192323,1709392240967,-500.0,0.00023999,2]
[316192325,1709392240976,-500.0,0.00023999,2]
[316192327,1709392240985,-500.0,0.00023999,2]
[316192329,1709392240994,-367.64,0.00023999,2]
[316192331,1709392241005,-500.0,0.00023999,2]
[316192333,1709392241013,-500.0,0.00023999,2]
[316192335,1709392241022,-500.0,0.00023999,2]
[316192337,1709392241031,-500.0,0.00023999,2]
[316192339,1709392241040,-500.0,0.00023999,2]
[316192341,1709392241048,-630.33,0.00023999,2]
[316192343,1709392241058,-500.0,0.00023999,2]
[316192345,1709392241067,-500.0,0.00023999,2]
[316192347,1709392241076,-500.0,0.00023999,2]
[316192349,1709392241085,-500.0,0.00023999,2]
[316192351,1709392241096,-500.0,0.00023999,2]
[316192353,1709392241105,-465.07491739,0.00023999,2]
[316192355,1709392241114,-500.0,0.00023999,2]
[316192357,1709392241123,-500.0,0.00023999,2]
[316192359,1709392241132,-500.0,0.00023999,2]
[316192361,1709392241142,-500.0,0.00023999,2]
[316192363,1709392241151,-500.0,0.00023999,2]
[316192365,1709392241160,-500.0,0.00023999,2]
[316192367,1709392241169,-500.0,0.00023999,2]
[316192369,1709392241178,-500.0,0.00023999,2]
[316192371,1709392241187,-423.53,0.00023999,2]
[316192373,1709392241196,-229.12378087,0.00023999,2]
[316192375,1709392241205,-500.0,0.00023999,2]
[316192377,1709392241215,-500.0,0.00023999,2]
[316192379,1709392241224,-500.0,0.00023999,2]
[316192381,1709392241234,-500.0,0.00023999,2]
[316192383,1709392241243,-500.0,0.00023999,2]
[316192385,1709392241254,-500.0,0.00023999,2]
[316192387,1709392241263,-500.0,0.00023999,2]
[316192389,1709392241272,-174.49,0.00023999,2]
[316192391,1709392241282,-1148780.18341902,0.00024,5]
[316192393,1709392241298,-20863.1046319,0.00024,5]
[316192396,1709392241313,-1871.14654871,0.00024,5]
[316192398,1709392241324,-66859.25020194,0.00024,5]
[316192400,1709392241337,-722.6346,0.00024,5]
[316192404,1709392241360,-33344.3260064,0.00024,5]
[316192406,1709392241371,-20285.91680003,0.00024,5]
[316192408,1709392241383,-13815.82555261,0.00024,5]
[316192410,1709392241396,-37751.55005403,0.00024,5]
[316192412,1709392241409,-2832.16453975,0.00024,5]
[316192415,1709392241420,-3628.16435902,0.00024,5]
[316192417,1709392241431,-2283.01786829,0.00024,5]
[316192419,1709392241442,-883.65792101,0.00024,5]
[316192928,1709392246458,-500.0,0.0002392,2]
[316192930,1709392246467,-83425.49919722,0.00024,5]
[316203823,1709392638986,5000.0,0.00023029,30]
[316203858,1709392662486,10000.0,0.000179,2]
[316203860,1709392685395,5000.0,0.000179,2]
[316203864,1709392714560,1460.0,0.000179,2]
[316203978,1709393283559,199002.97051602,0.000179,2]
[316203982,1709393301545,103680.54763884,0.000179,2]
[316203984,1709393317549,80856.48184514,0.000179,2]
[316203985,1709393365463,700000.0,0.0003,120]
[316204015,1709393433914,-155.01550155,0.00017565,2]
[316204017,1709393433924,-1079.89552638,0.00017566,2]
[316204019,1709393433933,-280.28110387,0.00017566,2]
[316204020,1709393433943,-214.50892528,0.00017566,2]
[316204022,1709393433952,-345.331442,0.00017567,2]
[316204023,1709393433961,-690.06,0.00017567,2]
[316204024,1709393433970,-6914.74611219,0.00017896,2]
[316204025,1709393433979,-300.0,0.00020571,2]
[316204027,1709393433988,-24900.0,0.00020579,2]
[316204028,1709393433998,-171.4412513,0.00020907,2]
[316204030,1709393434007,-457.50552855,0.00020929,2]
[316204033,1709393434016,-180.83884111,0.00020981,2]
[316204036,1709393434025,-1705.280595,0.00021206,2]
[316204037,1709393434034,-500.0,0.00021917,2]
[316204038,1709393434043,-10000.0,0.00021918,2]
[316204039,1709393434053,-695.33526627,0.00021918,2]
[316204040,1709393434062,-327.2251864,0.00022,2]
[316204041,1709393434071,-313.47,0.00022602,3]
[316204042,1709393434080,-211.37,0.0002261,2]
[316204043,1709393434089,-500.0,0.0002261,2]
[316204044,1709393434099,-500.0,0.0002261,2]
[316204045,1709393434108,-500.0,0.0002261,2]
[316204046,1709393434117,-505.85465343,0.00022611,2]
[316204047,1709393434126,-503.2923688,0.00022611,2]
[316204048,1709393434135,-500.0,0.00022611,2]
[316204050,1709393434144,-500.0,0.00022611,2]
[316204052,1709393434153,-325.57901717,0.00022611,2]
[316204053,1709393434162,-500.0,0.00022611,2]
[316204055,1709393434171,-508.63471195,0.00022611,2]
[316204056,1709393434180,-500.0,0.00022611,2]
[316204057,1709393434189,-500.0,0.00022611,2]
[316204059,1709393434198,-500.0,0.00022611,2]
[316204060,1709393434207,-500.0,0.00022611,2]
[316204061,1709393434217,-223.79,0.00022611,2]
[316204062,1709393434226,-500.0,0.00022611,2]
[316204063,1709393434235,-500.0,0.00022611,2]
[316204064,1709393434244,-500.0,0.00022611,2]
[316204065,1709393434253,-500.0,0.00022611,2]
[316204066,1709393434262,-529.34,0.00022611,2]
[316204067,1709393434271,-529.34,0.00022611,2]
[316204068,1709393434280,-500.0,0.00022611,2]
[316204069,1709393434289,-500.0,0.00022611,2]
[316204070,1709393434300,-500.0,0.00022611,2]
[316204071,1709393434309,-500.0,0.00022611,2]
[316204072,1709393434319,-465.02100258,0.00022611,2]
[316204073,1709393434328,-500.0,0.00022611,2]
[316204074,1709393434337,-500.0,0.00022611,2]
[316204075,1709393434346,-500.0,0.00022611,2]
[316204076,1709393434355,-500.0,0.00022611,2]
[316204077,1709393434364,-396.44599555,0.00022611,2]
[316204078,1709393434374,-500.0,0.00022611,2]
[316204079,1709393434383,-500.0,0.00022611,2]
[316204080,1709393434392,-500.0,0.00022611,2]
[316204081,1709393434402,-500.0,0.00022611,2]
[316204082,1709393434410,-500.0,0.00022611,2]
[316204083,1709393434420,-500.0,0.00022611,2]
[316204084,1709393434429,-6979.52498088,0.00022612,5]
[316204085,1709393434452,-883.67733257,0.00017565,2]
[316204086,1709393434461,-915.00654949,0.00022612,5]
[316204113,1709393438613,-278.42152,0.00022612,5]
[316204115,1709393438629,-8375.9580266,0.00022612,5]
[316204121,1709393438673,-3874.8324605,0.00022612,5]
[316204123,1709393438685,-30091.14808329,0.00022612,5]
[316204125,1709393438694,-227.05331871,0.00022612,3]
[316204128,1709393438704,-498.20878043,0.00022612,3]
[316204130,1709393438713,-500.0,0.00022666,2]
[316204132,1709393438722,-500.0,0.00022721,2]
[316204134,1709393438732,-639.27419173,0.00022775,2]
[316204136,1709393438743,-292.44463965,0.00022998,2]
[316204137,1709393438753,-186.68255246,0.00023879,2]
[316204139,1709393438764,-500.0,0.00023898,2]
[316204142,1709393438776,-184.61949673,0.00023899,2]
[316204143,1709393438786,-500.0,0.00023899,2]
[316204145,1709393438797,-248.55988568,0.00023899,2]
[316204147,1709393438809,-500.0,0.00023899,2]
[316204149,1709393438819,-500.0,0.00023899,2]
[316204151,1709393438829,-500.0,0.00023899,2]
[316204154,1709393438839,-509.48784933,0.00023899,2]
[316204167,1709393438849,-500.0,0.00023899,2]
[316204169,1709393438960,-500.0,0.00023899,2]
[316204171,1709393438970,-500.0,0.00023899,2]
[316204173,1709393438979,-500.0,0.00023899,2]
[316204175,1709393438988,-635.25741391,0.00023899,2]
[316204177,1709393438997,-500.0,0.00023899,2]
[316204179,1709393439007,-500.0,0.00023899,2]
[316204181,1709393439016,-500.0,0.00023899,2]
[316204183,1709393439025,-500.0,0.00023899,2]
[316204185,1709393439034,-500.0,0.00023899,2]
[316204187,1709393439043,-690.3,0.00023899,2]
[316204189,1709393439052,-500.0,0.00023899,2]
[316204191,1709393439061,-500.0,0.00023899,2]
[316204193,1709393439070,-500.0,0.00023899,2]
[316204195,1709393439079,-500.0,0.00023899,2]
[316204197,1709393439088,-500.0,0.00023899,2]
[316204199,1709393439097,-500.0,0.00023899,2]
[316204201,1709393439106,-500.0,0.00023899,2]
[316204203,1709393439115,-500.0,0.00023899,2]
[316204205,1709393439124,-529.34,0.00023899,2]
[316204207,1709393439133,-500.0,0.00023899,2]
[316204209,1709393439142,-500.0,0.00023899,2]
[316204211,1709393439151,-500.0,0.00023899,2]
[316204213,1709393439160,-500.0,0.00023899,2]
[316204215,1709393439169,-500.0,0.00023899,2]
[316204217,1709393439178,-173.78616604,0.00023899,2]
[316204219,1709393439187,-500.0,0.00023899,2]
[316204221,1709393439196,-1500.0,0.000239,2]
[316204223,1709393439206,-1500.0,0.000239,2]
[316204225,1709393439215,-1500.0,0.000239,2]
[316204227,1709393439224,-1500.0,0.000239,2]
[316204229,1709393439234,-1511.24,0.000239,2]
[316204231,1709393439243,-1500.0,0.000239,2]
[316204233,1709393439253,-1500.0,0.000239,2]
[316204235,1709393439264,-1500.0,0.000239,2]
[316204237,1709393439273,-1500.0,0.000239,2]
[316204239,1709393439282,-37302.60211783,0.000239,2]
[316204241,1709393439292,-180.8388411,0.000239,2]
[316204243,1709393439302,-500.0,0.00023909,2]
[316204245,1709393439311,-500.0,0.00023909,2]
[316204247,1709393439320,-12960.45097895,0.0002391,2]
[316204249,1709393439329,-200.000484,0.00023979,2]
[316204251,1709393439338,-34540.7216373,0.0002398,7]
[316204253,1709393439347,-500.0,0.00023996,2]
[316204255,1709393439356,-229.12378087,0.00023996,2]
[316204257,1709393439365,-500.0,0.00023997,2]
[316204259,1709393439374,-500.0,0.00023997,2]
[316204261,1709393439383,-500.0,0.00023997,2]
[316204263,1709393439392,-330.85528881,0.00023997,2]
[316204265,1709393439401,-500.0,0.00023997,2]
[316204267,1709393439410,-500.0,0.00023997,2]
[316204269,1709393439419,-500.0,0.00023997,2]
[316204271,1709393439428,-500.0,0.00023997,2]
[316204273,1709393439437,-275.31,0.00023997,2]
[316204275,1709393439446,-690.3,0.00023997,2]
[316204277,1709393439455,-500.0,0.00023997,2]
[316204279,1709393439465,-500.0,0.00023997,2]
[316204281,1709393439473,-500.0,0.00023997,2]
[316204283,1709393439482,-500.0,0.00023997,2]
[316204285,1709393439491,-500.0,0.00023997,2]
[316204287,1709393439500,-500.0,0.00023997,2]
[316204288,1709393439509,-529.34,0.00023997,2]
[316204290,1709393439518,-500.0,0.00023997,2]
[316204292,1709393439526,-500.0,0.00023997,2]
[316204294,1709393439535,-500.0,0.00023997,2]
[316204296,1709393439545,-500.0,0.00023997,2]
[316204298,1709393439556,-6044.42999651,0.00023998,2]
[316204301,1709393439565,-459.94438606,0.00023998,2]
[316204303,1709393439574,-155.01240099,0.00023998,2]
[316204305,1709393439583,-10296.68550869,0.00023998,2]
[316204307,1709393439592,-15232.69930367,0.00023998,2]
[316204309,1709393439600,-155.19710032,0.00023998,2]
[316204311,1709393439609,-1592.05606337,0.00023998,2]
[316204313,1709393439620,-156.21815447,0.00023998,2]
[316204315,1709393439631,-500.0,0.00023998,2]
[316204317,1709393439640,-500.0,0.00023998,2]
[316204319,1709393439649,-500.0,0.00023998,2]
[316204321,1709393439658,-500.0,0.00023998,2]
[316204323,1709393439669,-157.1486779,0.00023998,2]
[316204325,1709393439678,-500.0,0.00023998,2]
[316204327,1709393439687,-500.0,0.00023998,2]
[316204329,1709393439696,-500.0,0.00023998,2]
[316204331,1709393439705,-500.0,0.00023998,2]
[316204333,1709393439714,-500.0,0.00023998,2]
[316204335,1709393439724,-500.0,0.00023998,2]
[316204337,1709393439733,-500.0,0.00023998,2]
[316204339,1709393439743,-500.0,0.00023998,2]
[316204341,1709393439752,-500.0,0.00023998,2]
[316204343,1709393439761,-500.0,0.00023998,2]
[316204345,1709393439770,-500.0,0.00023998,2]
[316204347,1709393439780,-500.0,0.00023998,2]
[316204349,1709393439788,-690.3,0.00023998,2]
[316204351,1709393439797,-690.3,0.00023998,2]
[316204353,1709393439807,-500.0,0.00023998,2]
[316204355,1709393439816,-500.0,0.00023998,2]
[316204357,1709393439826,-500.0,0.00023998,2]
[316204359,1709393439836,-500.0,0.00023998,2]
[316204361,1709393439845,-500.0,0.00023998,2]
[316204363,1709393439855,-500.0,0.00023998,2]
[316204365,1709393439864,-500.0,0.00023998,2]
[316204367,1709393439872,-500.0,0.00023998,2]
[316204369,1709393439881,-500.0,0.00023998,2]
[316204371,1709393439890,-529.34,0.00023998,2]
[316204373,1709393439899,-529.34,0.00023998,2]
[316204375,1709393439908,-500.0,0.00023998,2]
[316204377,1709393439917,-500.0,0.00023998,2]
[316204379,1709393439928,-500.0,0.00023998,2]
[316204381,1709393439937,-500.0,0.00023998,2]
[316204383,1709393439946,-500.0,0.00023998,2]
[316204385,1709393439955,-500.0,0.00023998,2]
[316204387,1709393439964,-160.0,0.00023999,2]
[316204389,1709393439973,-160.0,0.00023999,2]
[316204391,1709393439982,-160.0,0.00023999,2]
[316204394,1709393439990,-160.0,0.00023999,2]
[316204396,1709393440000,-160.0,0.00023999,2]
[316204398,1709393440011,-160.0,0.00023999,2]
[316204400,1709393440020,-160.0,0.00023999,2]
[316204403,1709393440032,-160.0,0.00023999,2]
[316204405,1709393440042,-160.0,0.00023999,2]
[316204407,1709393440053,-204.4532614,0.00023999,2]
[316204409,1709393440063,-500.0,0.00023999,2]
[316204411,1709393440072,-500.0,0.00023999,2]
[316204413,1709393440081,-500.0,0.00023999,2]
[316204415,1709393440090,-236.55706077,0.00023999,2]
[316204417,1709393440100,-500.0,0.00023999,2]
[316204419,1709393440109,-500.0,0.00023999,2]
[316204421,1709393440118,-500.0,0.00023999,2]
[316204423,1709393440127,-500.0,0.00023999,2]
[316204425,1709393440136,-500.0,0.00023999,2]
[316204427,1709393440145,-500.0,0.00023999,2]
[316204429,1709393440154,-500.0,0.00023999,2]
[316204431,1709393440163,-493.0,0.00023999,2]
[316204433,1709393440172,-500.0,0.00023999,2]
[316204435,1709393440181,-500.0,0.00023999,2]
[316204437,1709393440190,-500.0,0.00023999,2]
[316204439,1709393440199,-283.45725101,0.00023999,2]
[316204441,1709393440208,-500.0,0.00023999,2]
[316204443,1709393440217,-500.0,0.00023999,2]
[316204445,1709393440227,-500.0,0.00023999,2]
[316204447,1709393440236,-500.0,0.00023999,2]
[316204449,1709393440245,-500.0,0.00023999,2]
[316204451,1709393440254,-500.0,0.00023999,2]
[316204453,1709393440263,-500.0,0.00023999,2]
[316204455,1709393440272,-392.84263966,0.00023999,2]
[316204457,1709393440280,-500.0,0.00023999,2]
[316204459,1709393440289,-519.44580644,0.00023999,2]
[316204461,1709393440298,-500.0,0.00023999,2]
[316204463,1709393440310,-500.0,0.00023999,2]
[316204465,1709393440319,-500.0,0.00023999,2]
[316204467,1709393440328,-500.0,0.00023999,2]
[316204469,1709393440338,-500.0,0.00023999,2]
[316204471,1709393440347,-500.0,0.00023999,2]
[316204473,1709393440356,-500.0,0.00023999,2]
[316204475,1709393440365,-500.0,0.00023999,2]
[316204477,1709393440375,-500.0,0.00023999,2]
[316204478,1709393440384,-517.62,0.00023999,2]
[316204479,1709393440393,-690.3,0.00023999,2]
[316204480,1709393440402,-690.3,0.00023999,2]
[316204481,1709393440410,-690.3,0.00023999,2]
[316204482,1709393440419,-690.3,0.00023999,2]
[316204483,1709393440427,-690.3,0.00023999,2]
[316204484,1709393440438,-690.3,0.00023999,2]
[316204485,1709393440447,-690.3,0.00023999,2]
[316204486,1709393440456,-690.3,0.00023999,2]
[316204487,1709393440465,-690.3,0.00023999,2]
[316204488,1709393440473,-690.3,0.00023999,2]
[316204489,1709393440483,-690.3,0.00023999,2]
[316204490,1709393440492,-690.3,0.00023999,2]
[316204491,1709393440501,-690.3,0.00023999,2]
[316204492,1709393440510,-690.3,0.00023999,2]
[316204493,1709393440518,-690.3,0.00023999,2]
[316204494,1709393440527,-690.3,0.00023999,2]
[316204496,1709393440536,-690.3,0.00023999,2]
[316204497,1709393440545,-690.3,0.00023999,2]
[316204498,1709393440556,-690.3,0.00023999,2]
[316204499,1709393440565,-690.47078689,0.00023999,2]
[316204501,1709393440574,-500.0,0.00023999,2]
[316204503,1709393440583,-422.72,0.00023999,2]
[316204505,1709393440592,-500.0,0.00023999,2]
[316204507,1709393440601,-500.0,0.00023999,2]
[316204509,1709393440610,-500.0,0.00023999,2]
[316204511,1709393440619,-500.0,0.00023999,2]
[316204513,1709393440631,-500.0,0.00023999,2]
[316204515,1709393440641,-407.69,0.00023999,2]
[316204517,1709393440650,-500.0,0.00023999,2]
[316204519,1709393440659,-500.0,0.00023999,2]
[316204521,1709393440670,-500.0,0.00023999,2]
[316204524,1709393440679,-500.0,0.00023999,2]
[316204527,1709393440690,-500.0,0.00023999,2]
[316204530,1709393440699,-500.0,0.00023999,2]
[316204534,1709393440709,-500.0,0.00023999,2]
[316204536,1709393440719,-500.0,0.00023999,2]
[316204541,1709393440728,-367.64,0.00023999,2]
[316204544,1709393440738,-505.986125,0.00023999,2]
[316204547,1709393440747,-500.0,0.00023999,2]
[316204549,1709393440756,-465.07491739,0.00023999,2]
[316204552,1709393440765,-529.34,0.00023999,2]
[316204555,1709393440774,-529.34,0.00023999,2]
[316204558,1709393440784,-529.34,0.00023999,2]
[316204561,1709393440793,-529.34,0.00023999,2]
[316204564,1709393440803,-529.34,0.00023999,2]
[316204566,1709393440813,-529.34,0.00023999,2]
[316204571,1709393440823,-529.34,0.00023999,2]
[316204574,1709393440832,-529.34,0.00023999,2]
[316204576,1709393440841,-529.34,0.00023999,2]
[316204578,1709393440850,-529.34,0.00023999,2]
[316204581,1709393440859,-529.34,0.00023999,2]
[316204586,1709393440869,-529.34,0.00023999,2]
[316204588,1709393440878,-529.34,0.00023999,2]
[316204591,1709393440887,-529.34,0.00023999,2]
[316204593,1709393440895,-529.34,0.00023999,2]
[316204596,1709393440904,-529.34,0.00023999,2]
[316204599,1709393440913,-529.34,0.00023999,2]
[316204602,1709393440922,-529.46776673,0.00023999,2]
[316204605,1709393440931,-500.0,0.00023999,2]
[316204608,1709393440940,-630.33,0.00023999,2]
[316204611,1709393440949,-500.0,0.00023999,2]
[316204614,1709393440959,-500.0,0.00023999,2]
[316204617,1709393440968,-500.0,0.00023999,2]
[316204620,1709393440977,-500.0,0.00023999,2]
[316204623,1709393440986,-500.0,0.00023999,2]
[316204626,1709393440995,-423.53,0.00023999,2]
[316204629,1709393441004,-500.0,0.00023999,2]
[316204632,1709393441013,-500.0,0.00023999,2]
[316204635,1709393441022,-500.0,0.00023999,2]
[316204638,1709393441031,-500.0,0.00023999,2]
[316204641,1709393441040,-174.49,0.00023999,2]
[316204644,1709393441049,-1130650.98191299,0.00024,5]
[316204735,1709393441592,-8713.16813218,0.00024,5]
[316204742,1709393441656,-1989.03803184,0.00024,5]
[316204745,1709393441673,-10624.7,0.00024,5]
[316204747,1709393441685,-2116.49478037,0.00024,5]
[316204749,1709393441698,-25015.94663285,0.00024,5]
[316204751,1709393441710,-1020.54843858,0.00024,5]
[316204753,1709393441721,-1025.94912,0.00024,5]
[316204755,1709393441732,-9638.54327758,0.00024,5]
[316205217,1709393446723,-18951.66439669,0.00024,5]
[316205220,1709393446734,-1152.81102501,0.00024,5]
[316206885,1709393969523,50000.0,0.0003,120]
[316206931,1709394631822,-280.28110387,0.0002046,2]
[316206933,1709394631831,-290.4373044,0.00020461,2]
[316206966,1709394637806,-658.93879695,0.00020459,3]
[316206968,1709394637817,-378.05400409,0.00020459,3]
[316206970,1709394637826,-789.45822198,0.00020461,2]
[316206972,1709394637835,-6914.74611219,0.00020462,2]
[316206985,1709394637941,-2523.9528131,0.00020465,2]
[316206987,1709394637953,-172.665721,0.0002059,2]
[316206989,1709394637963,-186.68255246,0.00020686,2]
[316206991,1709394637972,-180.8388411,0.00021817,2]
[316206993,1709394637982,-500.0,0.00021917,2]
[316206995,1709394637991,-500.0,0.00021917,2]
[316206997,1709394638000,-500.0,0.00021917,2]
[316206999,1709394638012,-500.0,0.00021917,2]
[316207001,1709394638024,-500.0,0.00021917,2]
[316207003,1709394638033,-500.0,0.00021917,2]
[316207005,1709394638042,-500.0,0.00021917,2]
[316207007,1709394638054,-500.0,0.00021917,2]
[316207009,1709394638063,-500.0,0.00021917,2]
[316207011,1709394638072,-500.0,0.00021917,2]
[316207013,1709394638082,-170.27526724,0.00021917,2]
[316207015,1709394638093,-500.0,0.00021917,2]
[316207017,1709394638103,-500.0,0.00021917,2]
[316207019,1709394638112,-500.74207174,0.00021917,2]
[316207022,1709394638122,-500.0,0.00021917,2]
[316207023,1709394638131,-503.43352678,0.00021917,2]
[316207026,1709394638142,-500.0,0.00021917,2]
[316207028,1709394638151,-500.0,0.00021917,2]
[316207030,1709394638162,-500.0,0.00021917,2]
[316207031,1709394638171,-500.0,0.00021917,2]
[316207034,1709394638181,-500.0,0.00021917,2]
[316207036,1709394638191,-500.0,0.00021917,2]
[316207038,1709394638201,-500.0,0.00021917,2]
[316207040,1709394638210,-500.0,0.00021917,2]
[316207041,1709394638219,-500.0,0.00021917,2]
[316207043,1709394638228,-500.0,0.00021917,2]
[316207045,1709394638238,-627.70059011,0.00021917,2]